bitfinex/quotes_BTCUSD_20220304
["timestamp","ask_amount","ask_price","bid_price","bid_amount"]
[1646368658359,0.18058202,41233.0,41221.0,0.01212]
[1646368658559,0.18058202,41233.0,41219.0,0.2406]
[1646368658560,0.42319888,41232.0,41219.0,0.18740286]
[1646368658761,0.6037809,41233.0,41232.0,0.53564092]
[1646368658959,0.18058202,41233.0,41232.0,0.53564092]
[1646368659159,0.28058202,41233.0,41232.0,0.53564092]
[1646368659364,0.70052741,41237.0,41232.0,0.53564092]
[1646368659560,0.1486,41236.0,41232.0,0.53564092]
[1646368664557,0.17269,41236.0,41232.0,0.53564092]
[1646368666761,0.0486,41236.0,41232.0,0.53564092]
[1646368666961,0.41182,41241.0,41232.0,0.53564092]
[1646368667162,0.1,41240.0,41232.0,0.53564092]
[1646368667363,0.3497,41241.0,41232.0,0.53564092]
[1646368667960,0.26200989,41237.0,41232.0,0.53564092]
[1646368669807,0.1,41240.0,41232.0,0.53564092]
[1646368670211,0.21573417,41237.0,41232.0,0.53564092]
[1646368671009,0.63893305,41237.0,41232.0,0.53564092]
[1646368671210,0.34335476,41236.0,41232.0,0.53554483]
[1646368674461,0.18572035,41234.0,41232.0,0.53554483]
[1646368674859,0.0486,41233.0,41232.0,0.53554483]
[1646368678918,0.05099794,41233.0,41232.0,0.53554483]
[1646368679557,0.23650838,41233.0,41232.0,0.53554483]
[1646368681161,0.07508794,41233.0,41232.0,0.53554483]
[1646368682358,0.17508794,41233.0,41232.0,0.53554483]
[1646368682959,0.41508794,41233.0,41232.0,0.53554483]
[1646368684214,0.39099794,41233.0,41232.0,0.53554483]
[1646368684414,0.29099794,41233.0,41232.0,0.53554483]
[1646368684616,1.15608794,41233.0,41232.0,0.53554483]
[1646368684817,1.87697519,41233.0,41232.0,0.53554483]
[1646368685217,1.52313294,41233.0,41232.0,0.53554483]
[1646368685515,1.87724465,41233.0,41232.0,0.53554483]
[1646368686315,1.52313294,41233.0,41232.0,0.53554483]
[1646368687561,1.15608794,41233.0,41232.0,0.53554483]
[1646368687762,1.52313294,41233.0,41232.0,0.53554483]
[1646368688368,1.15608794,41233.0,41232.0,0.53554483]
[1646368690916,1.57928682,41233.0,41232.0,0.53554483]
[1646368691611,1.55519682,41233.0,41232.0,0.53554483]
[1646368692013,1.13199794,41233.0,41232.0,0.53554483]
[1646368692411,1.03199794,41233.0,41232.0,0.53554483]
[1646368693817,1.13199794,41233.0,41232.0,0.53544754]
[1646368695660,2.02362182,41233.0,41232.0,0.53544754]
[1646368696260,2.16852182,41233.0,41232.0,0.53544754]
[1646368696467,0.02409,41230.0,41215.0,0.2325]
[1646368696661,0.22250235,41216.0,41215.0,0.2325]
[1646368696864,0.0486,41221.0,41210.0,0.42047846]
[1646368697062,0.0486,41221.0,41210.0,0.42447846]
[1646368697262,0.1486,41221.0,41210.0,0.42447846]
[1646368698108,0.34938234,41221.0,41210.0,0.42447846]
[1646368698407,0.34938234,41221.0,41210.0,0.42047846]
[1646368698806,0.34938234,41221.0,41209.0,0.002]
[1646368699010,0.1486,41221.0,41209.0,0.002]
[1646368699209,0.0486,41221.0,41209.0,0.002]
[1646368699811,0.0486,41221.0,41210.0,0.26575989]
[1646368700011,0.0486,41221.0,41211.0,0.95635666]
[1646368701014,0.2352278,41220.0,41211.0,0.95635666]
[1646368702466,0.1,41223.0,41211.0,0.95635666]
[1646368702860,0.2778,41224.0,41223.0,8.663e-05]
[1646368705260,0.5285945,41224.0,41223.0,8.663e-05]
[1646368705718,0.6285945,41224.0,41223.0,8.663e-05]
[1646368706518,0.3778,41224.0,41223.0,8.663e-05]
[1646368706719,0.2778,41224.0,41223.0,8.663e-05]
[1646368706922,0.3778,41224.0,41223.0,8.663e-05]
[1646368708119,0.2778,41224.0,41223.0,8.663e-05]
[1646368708319,0.3778,41224.0,41223.0,8.663e-05]
[1646368708919,0.38045446,41224.0,41223.0,8.663e-05]
[1646368709362,0.28045446,41224.0,41223.0,8.663e-05]
[1646368709567,0.38045446,41224.0,41223.0,8.663e-05]
[1646368709762,0.62045446,41224.0,41223.0,8.663e-05]
[1646368710064,0.57185446,41224.0,41223.0,8.663e-05]
[1646368719862,0.88922644,41224.0,41223.0,8.663e-05]
[1646368720716,1.70291644,41224.0,41223.0,8.663e-05]
[1646368720914,1.45888652,41224.0,41223.0,8.663e-05]
[1646368721121,1.87936498,41224.0,41223.0,8.663e-05]
[1646368723814,1.87936498,41224.0,41223.0,6.63e-06]
[1646368724017,4.72717765,41224.0,41209.0,0.002]
[1646368724218,0.76509,41216.0,41209.0,0.002]
[1646368724469,0.76509,41214.0,41209.0,0.002]
[1646368724673,0.81369,41213.0,41209.0,0.002]
[1646368724867,0.25099761,41211.0,41209.0,0.002]
[1646368725074,0.0486,41210.0,41209.0,0.002]
[1646368725273,0.1486,41210.0,41209.0,0.002]
[1646368726075,0.8896,41210.0,41209.0,0.002]
[1646368727272,0.91369,41210.0,41209.0,0.002]
[1646368729011,0.9142893,41210.0,41209.0,0.002]
[1646368729412,1.1542893,41210.0,41209.0,0.002]
[1646368729611,1.1301993,41210.0,41209.0,0.002]
[1646368731615,0.2405993,41210.0,41209.0,0.002]
[1646368734460,0.2405993,41210.0,41209.0,0.06292685]
[1646368735359,0.2405993,41210.0,41209.0,0.002]
[1646368735609,0.2405993,41210.0,41209.0,0.06292685]
[1646368736008,0.2405993,41210.0,41209.0,0.002]
[1646368736508,0.2305993,41210.0,41209.0,0.002]
[1646368736708,0.2305993,41210.0,41209.0,0.06292685]
[1646368739113,0.2311936,41210.0,41209.0,0.06292685]
[1646368739401,0.2311936,41210.0,41209.0,0.21292685]
[1646368744216,0.2311936,41210.0,41209.0,0.06292685]
[1646368749864,0.01213,41222.0,41211.0,0.58504092]
[1646368750068,0.01213,41229.0,41215.0,0.15]
[1646368750717,0.2651774,41221.0,41213.0,0.15]
[1646368751118,0.2651774,41221.0,41212.0,0.226]
[1646368751322,0.2651774,41221.0,41211.0,0.58504092]
[1646368751716,0.2651774,41221.0,41211.0,0.86675135]
[1646368757168,0.12409,41226.0,41211.0,0.86675135]
[1646368757767,0.1,41226.0,41211.0,0.86675135]
[1646368758215,0.25909192,41219.0,41211.0,0.85675135]
[1646368760514,0.49909192,41219.0,41211.0,0.85675135]
[1646368761720,0.18978169,41221.0,41219.0,0.03670659]
[1646368761965,0.1,41224.0,41219.0,0.03670659]
[1646368762363,0.2493,41225.0,41219.0,0.03670659]
[1646368762563,0.24865373,41225.0,41219.0,0.03670659]
[1646368763164,0.24865373,41225.0,41220.0,0.27559458]
[1646368763363,0.27392067,41226.0,41220.0,0.27559458]
[1646368763565,0.27392067,41226.0,41219.0,0.03670659]
[1646368764965,0.43066058,41226.0,41219.0,0.03670659]
[1646368765165,0.27392067,41226.0,41219.0,0.03670659]
[1646368766620,0.1,41229.0,41219.0,0.03670659]
[1646368767520,0.28600293,41226.0,41219.0,0.03670659]
[1646368770371,0.02409,41225.0,41219.0,0.03670659]
[1646368770580,0.5386632,41225.0,41219.0,0.03670659]
[1646368770772,0.07269,41224.0,41219.0,0.03670659]
[1646368771390,0.02409,41222.0,41219.0,0.03670659]
[1646368771571,0.0486,41221.0,41219.0,0.03670659]
[1646368774617,0.1,41225.0,41219.0,0.03670659]
[1646368775018,0.095,41225.0,41219.0,0.03670659]
[1646368775219,0.28600293,41226.0,41219.0,0.03670659]
[1646368777067,0.1,41229.0,41219.0,0.03670659]
[1646368777268,0.03614979,41230.0,41219.0,0.03670659]
[1646368777269,0.13614979,41230.0,41219.0,0.03670659]
[1646368777868,0.30751529,41230.0,41219.0,0.03670659]
[1646368778569,0.13114979,41230.0,41219.0,0.03670659]
[1646368779176,0.1,41230.0,41219.0,0.03670659]
[1646368779370,2.1895,41231.0,41227.0,0.27236011]
[1646368779572,0.05,41234.0,41227.0,0.27236011]
[1646368779770,0.02409,41236.0,41219.0,0.03670659]
[1646368779974,0.4286632,41236.0,41219.0,0.03670659]
[1646368780170,0.60169274,41236.0,41219.0,0.03670659]
[1646368780370,0.24,41234.0,41219.0,0.03670659]
[1646368780620,0.24,41234.0,41219.0,0.23746848]
[1646368780916,0.2555358,41231.0,41225.0,0.24913974]
[1646368781117,0.2555358,41231.0,41219.0,0.23746848]
[1646368781517,0.2555358,41231.0,41221.0,0.005]
[1646368781915,0.00258441,41219.0,41218.0,0.20076189]
[1646368782116,0.00258441,41219.0,41218.0,0.26168874]
[1646368782717,0.00258441,41219.0,41218.0,0.10952685]
[1646368782920,0.05,41232.0,41219.0,1.5]
[1646368783122,0.24,41234.0,41221.0,0.35075333]
[1646368783319,0.41287166,41238.0,41222.0,0.0486]
[1646368784018,0.194392,41231.0,41222.0,0.0486]
[1646368784219,0.16033131,41232.0,41222.0,0.0486]
[1646368785071,0.38232386,41232.0,41226.0,0.23059284]
[1646368786468,0.22199255,41232.0,41222.0,0.0486]
[1646368787169,0.15739433,41234.0,41222.0,0.0486]
[1646368788425,0.27334091,41233.0,41228.0,0.24002882]
[1646368788624,0.2273,41237.0,41222.0,0.0486]
[1646368788824,0.3273,41237.0,41222.0,0.0486]
[1646368789624,0.15924387,41233.0,41222.0,0.0486]
[1646368789825,0.43472568,41233.0,41227.0,0.23337841]
[1646368790025,0.3273,41237.0,41227.0,0.23337841]
[1646368790627,0.2273,41237.0,41227.0,0.23337841]
[1646368791027,0.18320597,41235.0,41227.0,0.23337841]
[1646368792872,0.26481219,41236.0,41227.0,0.23337841]
[1646368793071,0.4673,41237.0,41227.0,0.23337841]
[1646368794274,0.21338792,41236.0,41227.0,0.23337841]
[1646368795075,0.4673,41237.0,41227.0,0.23337841]
[1646368798823,0.060679,41236.0,41227.0,0.23337841]
[1646368801274,0.060679,41236.0,41222.0,0.0486]
[1646368802274,0.41287166,41235.0,41222.0,0.0486]
[1646368802473,0.25971825,41231.0,41225.0,0.2053001]
[1646368802673,0.41287166,41235.0,41225.0,0.2053001]
[1646368803525,0.23845292,41232.0,41225.0,0.2053001]
[1646368803725,0.41287166,41235.0,41225.0,0.2053001]
[1646368803928,0.060679,41236.0,41225.0,0.2053001]
[1646368804126,0.19741416,41232.0,41225.0,0.2053001]
[1646368804328,0.41287166,41235.0,41225.0,0.2053001]
[1646368804527,0.060679,41236.0,41225.0,0.2053001]
[1646368804728,0.21124978,41234.0,41225.0,0.2053001]
[1646368805330,0.162647,41231.0,41225.0,0.2053001]
[1646368805534,0.21124978,41234.0,41221.0,0.18748438]
[1646368805733,0.060679,41236.0,41221.0,0.19348438]
[1646368806532,0.20472654,41231.0,41221.0,0.19348438]
[1646368806731,0.20472654,41231.0,41226.0,0.22712694]
[1646368806975,0.27946786,41232.0,41226.0,0.22712694]
[1646368807175,0.060679,41236.0,41226.0,0.22712694]
[1646368807876,0.21976735,41233.0,41226.0,0.22712694]
[1646368808076,0.47224863,41233.0,41226.0,0.22712694]
[1646368809078,0.47224863,41233.0,41226.0,0.21643789]
[1646368810079,0.47224863,41233.0,41223.0,0.006]
[1646368810482,0.060679,41236.0,41223.0,0.006]
[1646368810733,0.060679,41236.0,41224.0,0.0486]
[1646368811733,0.060679,41236.0,41232.0,0.22850587]
[1646368811931,0.060679,41236.0,41224.0,0.0486]
[1646368813133,0.060679,41236.0,41229.0,0.20523083]
[1646368819726,0.34006548,41236.0,41229.0,0.20523083]
[1646368820126,0.060679,41236.0,41229.0,0.20523083]
[1646368821631,0.05,41245.0,41236.0,0.182037]
[1646368821891,0.01896122,41249.0,41238.0,0.2491081]
[1646368822085,0.02006122,41252.0,41239.0,0.0486]
[1646368822284,0.02006122,41252.0,41241.0,0.20075333]
[1646368822483,0.0011,41252.0,41251.0,0.28702623]
[1646368822683,0.0011,41252.0,41251.0,0.33562623]
[1646368823283,0.0011,41252.0,41251.0,0.39655308]
[1646368824092,0.0011,41252.0,41251.0,0.80771954]
[1646368824485,0.0011,41252.0,41251.0,0.39655308]
[1646368829474,0.0011,41252.0,41251.0,0.80771954]
[1646368831673,0.2411,41252.0,41251.0,0.80771954]
[1646368832172,0.24080805,41252.0,41251.0,0.80771954]
[1646368833625,0.24080805,41252.0,41251.0,0.99512441]
[1646368833826,0.24080805,41252.0,41251.0,0.39655308]
[1646368834027,0.24080805,41252.0,41251.0,0.29693172]
[1646368834231,0.24080805,41252.0,41251.0,0.06092685]
[1646368836984,0.24080805,41252.0,41242.0,0.2611]
[1646368836985,0.54989871,41252.0,41242.0,0.0121]
[1646368837984,0.54989871,41252.0,41244.0,0.24215231]
[1646368840283,0.33120805,41252.0,41244.0,0.24215231]
[1646368840485,0.24080805,41252.0,41244.0,0.24215231]
[1646368843527,0.24080805,41252.0,41245.0,0.41116646]
[1646368843729,0.24080805,41252.0,41244.0,0.24215231]
[1646368843929,0.24080805,41252.0,41245.0,0.41116646]
[1646368844130,0.24080805,41252.0,41244.0,0.24215231]
[1646368844377,0.50610455,41252.0,41244.0,0.24215231]
[1646368845576,0.50610455,41252.0,41245.0,0.41116646]
[1646368845779,0.50610455,41252.0,41244.0,0.24215231]
[1646368846378,0.24080805,41252.0,41244.0,0.24215231]
[1646368846980,0.24080805,41252.0,41245.0,0.41116646]
[1646368847383,0.24080805,41252.0,41246.0,0.0486]
[1646368851734,0.05,41257.0,41254.0,0.29463083]
[1646368851979,0.03621,41263.0,41254.0,0.29463083]
[1646368852781,0.25186777,41255.0,41254.0,0.29463083]
[1646368852977,0.16548085,41258.0,41254.0,0.29463083]
[1646368853779,0.19260217,41257.0,41254.0,0.29463083]
[1646368853981,0.16548085,41258.0,41254.0,0.29463083]
[1646368854979,0.17256851,41256.0,41254.0,0.29463083]
[1646368855383,0.28254982,41256.0,41254.0,0.29463083]
[1646368856432,0.17494177,41255.0,41254.0,0.29463083]
[1646368856635,0.28254982,41256.0,41254.0,0.29463083]
[1646368856832,0.02409,41257.0,41254.0,0.29463083]
[1646368857333,0.02409,41261.0,41254.0,0.29463083]
[1646368857735,0.28903749,41258.0,41254.0,0.29463083]
[1646368857939,0.061743,41262.0,41254.0,0.29463083]
[1646368858337,0.02409,41261.0,41254.0,0.29463083]
[1646368858935,0.46211672,41260.0,41254.0,0.29463083]
[1646368859135,0.26429027,41260.0,41254.0,0.29463083]
[1646368860278,0.02409,41261.0,41254.0,0.29463083]
[1646368860882,0.02519,41262.0,41254.0,0.29463083]
[1646368861281,0.30082873,41262.0,41254.0,0.29463083]
[1646368861683,0.18216264,41261.0,41254.0,0.29463083]
[1646368863534,0.54082873,41262.0,41254.0,0.29463083]
[1646368863734,0.26519,41262.0,41254.0,0.29463083]
[1646368864634,0.20515452,41261.0,41254.0,0.29463083]
[1646368867080,0.23536604,41260.0,41254.0,0.52332317]
[1646368867280,0.23536604,41260.0,41254.0,0.29463083]
[1646368867679,0.20515452,41261.0,41254.0,0.29463083]
[1646368867881,0.2047199,41261.0,41254.0,0.29463083]
[1646368868081,0.0011,41262.0,41254.0,0.29463083]
[1646368869082,0.39145587,41262.0,41257.0,0.27202388]
[1646368869282,0.1628655,41262.0,41257.0,0.27202388]
[1646368869481,0.0011,41262.0,41257.0,0.27202388]
[1646368870483,0.17710926,41262.0,41257.0,0.27202388]
[1646368872027,0.17710926,41262.0,41254.0,0.29463083]
[1646368872427,0.0011,41262.0,41254.0,0.29463083]
[1646368872628,0.0111,41262.0,41254.0,0.29463083]
[1646368873628,0.18157017,41262.0,41254.0,0.29463083]
[1646368874031,0.23917409,41255.0,41254.0,0.29463083]
[1646368874233,0.21222408,41259.0,41254.0,0.29463083]
[1646368874482,0.23631408,41259.0,41254.0,0.29463083]
[1646368874682,0.02409,41257.0,41254.0,0.29463083]
[1646368875079,0.02409,41255.0,41254.0,0.29463083]
[1646368875280,0.23012875,41255.0,41254.0,0.29463083]
[1646368875482,0.50048004,41255.0,41254.0,0.29463083]
[1646368876682,0.29444129,41255.0,41254.0,0.29463083]
[1646368876886,0.2415,41262.0,41254.0,0.70614061]
[1646368877087,0.2415,41262.0,41255.0,0.0486]
[1646368877283,0.2415,41262.0,41255.0,0.46010978]
[1646368877485,0.2415,41262.0,41255.0,0.0486]
[1646368877884,0.65599055,41262.0,41255.0,0.0486]
[1646368879134,0.65599055,41262.0,41254.0,0.29463083]
[1646368879335,0.16054308,41259.0,41254.0,0.29463083]
[1646368879536,0.16054308,41259.0,41258.0,0.06092685]
[1646368879934,0.16054308,41259.0,41254.0,0.29463083]
[1646368881906,0.08474,41258.0,41254.0,0.29463083]
[1646368882104,0.2391795,41255.0,41254.0,0.29463083]
[1646368882606,0.50269163,41255.0,41254.0,0.29463083]
[1646368883705,0.06065,41258.0,41254.0,0.29463083]
[1646368883706,0.08474,41258.0,41254.0,0.29463083]
[1646368883906,0.002,41257.0,41254.0,0.29463083]
[1646368884709,0.21450265,41256.0,41254.0,0.29463083]
[1646368885934,0.15474003,41257.0,41254.0,0.29463083]
[1646368886136,0.08474,41258.0,41254.0,0.29463083]
[1646368886836,0.06065,41258.0,41254.0,0.29463083]
[1646368887035,0.1899953,41256.0,41254.0,0.29463083]
[1646368887236,0.06065,41258.0,41254.0,0.29463083]
[1646368888035,0.25457455,41255.0,41254.0,0.29463083]
[1646368888237,0.06065,41258.0,41254.0,0.29463083]
[1646368889582,0.17054308,41259.0,41254.0,0.29463083]
[1646368889583,0.01,41259.0,41254.0,0.29463083]
[1646368890582,0.21211861,41259.0,41256.0,0.2418143]
[1646368890984,0.21211861,41259.0,41254.0,0.29463083]
[1646368892185,0.21211861,41259.0,41254.0,0.29453262]
[1646368892385,0.01,41259.0,41255.0,0.26371473]
[1646368892587,0.01,41259.0,41254.0,0.29453262]
[1646368893435,0.246,41262.0,41259.0,0.49]
[1646368893730,0.0056,41262.0,41259.0,0.49]
[1646368893932,0.1556,41262.0,41259.0,0.49]
[1646368894335,0.2556,41262.0,41259.0,0.49]
[1646368894731,0.28587851,41260.0,41259.0,0.49]
[1646368895133,0.1056,41262.0,41259.0,0.49]
[1646368895334,0.51710978,41262.0,41259.0,0.49]
[1646368895535,0.1056,41262.0,41259.0,0.49]
[1646368896334,0.15414471,41261.0,41259.0,0.49]
[1646368896534,0.48394826,41261.0,41259.0,0.49]
[1646368896892,0.32980355,41261.0,41259.0,0.49]
[1646368898091,0.2755965,41261.0,41259.0,0.49]
[1646368898289,0.1056,41262.0,41259.0,0.49]
[1646368898690,0.0056,41262.0,41259.0,0.49]
[1646368898891,0.15454389,41261.0,41259.0,0.49]
[1646368899394,0.1056,41262.0,41259.0,0.49]
[1646368900391,0.25259192,41262.0,41259.0,0.49]
[1646368900638,0.217669,41261.0,41259.0,0.49]
[1646368900838,0.25259192,41262.0,41259.0,0.49]
[1646368900839,0.0056,41262.0,41259.0,0.49]
[1646368901037,0.1056,41262.0,41259.0,0.49]
[1646368901838,0.21529832,41261.0,41259.0,0.49]
[1646368902042,0.28646783,41262.0,41259.0,0.49]
[1646368902338,0.1056,41262.0,41259.0,0.49]
[1646368902740,0.0056,41262.0,41259.0,0.49]
[1646368903139,0.29295596,41262.0,41259.0,0.49]
[1646368903339,0.39295596,41262.0,41259.0,0.49]
[1646368903539,0.01,41261.0,41259.0,0.49]
[1646368905581,0.20491652,41260.0,41259.0,0.49]
[1646368905982,0.0056,41262.0,41259.0,0.49]
[1646368907082,0.28474067,41261.0,41259.0,0.49]
[1646368908259,0.0056,41262.0,41259.0,0.49]
[1646368914690,0.0056,41262.0,41261.0,0.22195305]
[1646368917544,0.0056,41262.0,41261.0,0.63338423]
[1646368917743,0.0011,41264.0,41262.0,1.5]
[1646368917942,0.0011,41264.0,41263.0,0.41150978]
[1646368918140,0.0011,41264.0,41263.0,0.59891554]
[1646368918740,0.0011,41264.0,41263.0,0.41150978]
[1646368921397,0.0011,41264.0,41262.0,0.0486]
[1646368921590,0.0011,41264.0,41260.0,0.18740576]
[1646368921790,0.0011,41264.0,41259.0,0.49]
[1646368921991,0.0011,41264.0,41259.0,0.494]
[1646368922595,0.0011,41264.0,41260.0,0.62219016]
[1646368922801,0.0011,41269.0,41265.0,0.00439999]
[1646368924840,0.0011,41269.0,41268.0,0.28085473]
[1646368926344,0.0011,41269.0,41265.0,0.00439999]
[1646368927387,0.0011,41269.0,41268.0,0.22801044]
[1646368927587,0.0011,41269.0,41265.0,0.00439999]
[1646368927991,0.060633,41270.0,41269.0,0.0008]
[1646368932545,0.060633,41270.0,41269.0,0.26621768]
[1646368932745,0.060633,41270.0,41269.0,0.0008]
[1646368932946,0.0011,41271.0,41269.0,0.0008]
[1646368934047,0.0011,41271.0,41270.0,0.25771338]
[1646368935288,0.0011,41271.0,41269.0,0.0008]
[1646368936297,0.0011,41271.0,41270.0,0.0486]
[1646368936496,0.0011,41274.0,41270.0,0.65711274]
[1646368936692,0.0011,41274.0,41271.0,0.1]
[1646368936893,0.0011,41274.0,41273.0,0.06092685]
[1646368937094,0.0011,41274.0,41273.0,0.53313663]
[1646368937392,0.0011,41274.0,41273.0,0.67103663]
[1646368937593,0.0011,41274.0,41273.0,0.78313663]
[1646368938257,0.0011,41294.0,41277.0,0.44775902]
[1646368938448,0.0011,41294.0,41290.0,0.15]
[1646368938649,0.0011,41294.0,41291.0,0.33739349]
[1646368938846,0.0011,41294.0,41292.0,0.0486]
[1646368941448,0.19079522,41294.0,41292.0,0.0486]
[1646368941894,0.0011,41294.0,41292.0,0.0486]
[1646368942492,0.0011,41294.0,41287.0,0.22136559]
[1646368942695,0.061698,41294.0,41287.0,0.22136559]
[1646368942895,0.061698,41294.0,41288.0,0.0486]
[1646368944796,0.22220357,41294.0,41288.0,0.0486]
[1646368945095,0.061698,41294.0,41288.0,0.0486]
[1646368945395,0.061698,41294.0,41277.0,0.41039172]
[1646368945652,0.061698,41294.0,41278.0,0.0486]
[1646368945850,0.061698,41294.0,41289.0,0.25528059]
[1646368946055,0.061698,41294.0,41282.0,0.0486]
[1646368946252,0.061698,41294.0,41283.0,0.41039172]
[1646368946451,0.0011,41294.0,41283.0,0.41039172]
[1646368947053,0.0011,41294.0,41287.0,0.27794602]
[1646368947452,0.0011,41294.0,41287.0,0.2771615]
[1646368947651,0.0011,41294.0,41287.0,0.2760905]
[1646368948053,0.0011,41294.0,41284.0,0.004]
[1646368948658,0.22011129,41294.0,41284.0,0.004]
[1646368949257,0.0011,41294.0,41287.0,0.21209852]
[1646368950111,0.0011,41294.0,41283.0,0.004]
[1646368951317,0.15600765,41292.0,41284.0,0.21095398]
[1646368952312,0.0011,41294.0,41284.0,0.21095398]
[1646368954938,0.0011,41294.0,41285.0,0.41039172]
[1646368955742,0.21241568,41294.0,41285.0,0.41039172]
[1646368955941,0.21241568,41294.0,41281.0,0.41039172]
[1646368956140,0.21031568,41294.0,41279.0,0.005]
[1646368957186,0.21031568,41294.0,41285.0,0.27070967]
[1646368957390,0.21031568,41294.0,41278.0,0.41039172]
[1646368958488,0.21031568,41294.0,41284.0,0.26497039]
[1646368959096,0.21031568,41294.0,41278.0,0.41039172]
[1646368959689,0.18154878,41289.0,41278.0,0.41039172]
[1646368959891,0.21031568,41294.0,41290.0,0.35343788]
[1646368959892,0.21145702,41292.0,41290.0,0.35343788]
[1646368960093,0.060598,41293.0,41290.0,0.35343788]
[1646368962044,0.27405423,41292.0,41290.0,0.35343788]
[1646368963144,0.11319,41297.0,41290.0,0.35343788]
[1646368963145,0.01319,41297.0,41290.0,0.35343788]
[1646368963345,0.0011,41297.0,41290.0,0.35343788]
[1646368963744,0.00102748,41297.0,41290.0,0.35343788]
[1646368964150,0.28170255,41297.0,41290.0,0.35343788]
[1646368964393,0.45341088,41297.0,41290.0,0.35343788]
[1646368964595,0.17273581,41297.0,41290.0,0.35343788]
[1646368965694,0.42974521,41297.0,41292.0,0.261447]
[1646368965896,0.17273581,41297.0,41292.0,0.261447]
[1646368966095,0.17273581,41297.0,41290.0,0.35343788]
[1646368966897,0.16773581,41297.0,41290.0,0.35343788]
[1646368967298,0.20664729,41292.0,41290.0,0.35343788]
[1646368967499,0.41015584,41291.0,41290.0,0.35343788]
[1646368967700,0.20664729,41292.0,41290.0,0.41436473]
[1646368967897,0.20664729,41292.0,41290.0,0.35343788]
[1646368971347,0.086685,41295.0,41290.0,0.35343788]
[1646368971542,0.084685,41295.0,41290.0,0.35343788]
[1646368971743,0.060595,41295.0,41290.0,0.35343788]
[1646368972393,0.02409,41294.0,41290.0,0.35343788]
[1646368972789,0.16625251,41293.0,41290.0,0.35343788]
[1646368973190,0.02409,41294.0,41290.0,0.35343788]
[1646368973590,0.26981174,41292.0,41290.0,0.35343788]
[1646368976044,0.29390174,41292.0,41290.0,0.35343788]
[1646368976246,0.29390174,41292.0,41286.0,0.003]
[1646368976247,0.02409,41287.0,41286.0,0.003]
[1646368976445,0.07269,41290.0,41286.0,0.003]
[1646368977048,0.21122933,41287.0,41286.0,0.003]
[1646368977253,0.02409,41287.0,41286.0,0.003]
[1646368977448,0.02409,41287.0,41278.0,0.2583699]
[1646368978046,0.02409,41287.0,41275.0,0.00659999]
[1646368978250,0.21010165,41286.0,41277.0,0.004]
[1646368979249,0.060605,41289.0,41281.0,0.06092685]
[1646368979523,0.00068852,41291.0,41282.0,0.41163574]
[1646368979721,0.00068852,41291.0,41282.0,0.46023574]
[1646368980320,0.00068852,41291.0,41282.0,0.66085205]
[1646368980525,0.00068852,41291.0,41285.0,0.23888189]
[1646368980723,0.00068852,41291.0,41281.0,0.005]
[1646368981326,0.1767262,41287.0,41278.0,0.61225205]
[1646368981523,0.00068852,41291.0,41278.0,0.20061631]
[1646368981524,0.24238346,41289.0,41278.0,0.20061631]
[1646368981721,0.23825487,41288.0,41282.0,0.25305866]
[1646368981920,0.23825487,41288.0,41278.0,0.20061631]
[1646368982425,0.23825487,41288.0,41277.0,0.20561631]
[1646368982622,0.23825487,41288.0,41278.0,0.41163574]
[1646368983247,0.23825487,41288.0,41278.0,0.61225205]
[1646368984247,0.17593971,41286.0,41278.0,0.61225205]
[1646368984447,0.23825487,41288.0,41278.0,0.61225205]
[1646368984646,0.23825487,41288.0,41281.0,0.24746264]
[1646368985447,0.18286538,41287.0,41281.0,0.24746264]
[1646368985647,0.23825487,41288.0,41281.0,0.24746264]
[1646368986750,0.17817777,41287.0,41281.0,0.24746264]
[1646368986996,0.21829346,41289.0,41281.0,0.24746264]
[1646368988397,0.48297209,41289.0,41281.0,0.24746264]
[1646368988797,0.21992681,41288.0,41281.0,0.24746264]
[1646368989197,0.00071001,41286.0,41281.0,0.24746264]
[1646368989396,0.00071001,41286.0,41285.0,0.06092685]
[1646368989998,0.00068607,41287.0,41286.0,0.00142001]
[1646368992050,0.04928607,41287.0,41286.0,0.00142001]
[1646368992648,0.43185374,41287.0,41286.0,0.00142001]
[1646368992852,0.7409264,41287.0,41286.0,0.00142001]
[1646368994251,0.8409264,41287.0,41286.0,0.00142001]
[1646368994501,0.08471,41285.0,41283.0,0.003]
[1646368994698,0.07269,41284.0,41283.0,0.003]
[1646368995503,0.81369,41284.0,41270.0,0.63268599]
[1646368995701,0.28833699,41276.0,41270.0,0.63268599]
[1646368995901,0.48955161,41276.0,41270.0,0.63268599]
[1646368996099,0.48955161,41276.0,41270.0,0.22105025]
[1646368996300,0.41310112,41276.0,41270.0,0.003]
[1646368996501,0.20121462,41276.0,41270.0,0.003]
[1646368997503,0.20121462,41276.0,41272.0,0.23360117]
[1646368997706,0.2369,41283.0,41273.0,0.41163574]
[1646368998346,0.2369,41283.0,41274.0,0.004]
[1646368998646,0.28822649,41281.0,41274.0,0.004]
[1646368998844,0.2369,41283.0,41274.0,0.004]
[1646368999046,0.00132736,41276.0,41274.0,0.004]
[1646368999445,0.00132736,41276.0,41272.0,0.23360117]
[1646368999645,0.00132736,41276.0,41273.0,0.41163574]
[1646369000244,0.00132736,41276.0,41274.0,0.005]
[1646369001444,0.00132736,41276.0,41273.0,0.41163574]
[1646369001649,0.00132736,41276.0,41275.0,0.11612684]
[1646369001650,2.736e-05,41276.0,41275.0,0.11612684]
[1646369001897,0.00066865,41284.0,41276.0,1.50008208]
[1646369002097,0.00066865,41284.0,41280.0,0.19615683]
[1646369002297,0.00066865,41284.0,41283.0,0.06092685]
[1646369002496,0.00066865,41284.0,41283.0,0.10952685]
[1646369002698,0.00066865,41284.0,41283.0,0.06070698]
[1646369004098,0.00066865,41284.0,41283.0,0.47234272]
[1646369004299,0.00066865,41284.0,41283.0,0.57234272]
[1646369004799,0.00061726,41290.0,41283.0,0.57234272]
[1646369005001,0.00061726,41290.0,41284.0,0.1]
[1646369005201,0.00061726,41290.0,41285.0,0.2976]
[1646369005642,0.00061726,41290.0,41289.0,0.06092685]
[1646369005849,0.00061726,41290.0,41289.0,0.10952685]
[1646369006045,0.00061726,41290.0,41289.0,0.0486]
[1646369006244,0.00061726,41290.0,41289.0,0.06070698]
[1646369007344,0.00061726,41290.0,41289.0,0.47234272]
[1646369009517,0.0011,41298.0,41289.0,0.47234272]
[1646369009717,0.0011,41298.0,41296.0,0.23972272]
[1646369010121,0.0011,41298.0,41292.0,0.0486]
[1646369012021,0.0011,41298.0,41294.0,0.34851023]